Cogmind - Beta 10.2 --- EXPLORER MODE // 2021.07.21 @ 19:55:06 Player: REBUS Result: Destroyed by G-34 Mercenary with Small Laser Performance ------------- Evolutions (1) 500 Regions Visited (4) 800 Robots Destroyed (10) 50 Value Destroyed (333) 333 Prototype IDs (0) 0 Alien Tech Used (0) 0 Bonus (328) 328 TOTAL SCORE: 2011 Bonus ------- Pacifist 200 Follower Combat Kills 128 Cogmind --------- Core Integrity 0/400 Matter 300/300 Energy 61/100 System Corruption 1% Temperature Cool (6) Movement Core (150) Ox2 Location -9/Storage Parts ------- > --- POWER (1) -------- (None) > --- PROPULSION (3) --- (None) > --- UTILITY (4) ------ Medium Storage Unit > --- WEAPON (2) ------- (None) > --- INVENTORY (8) ---- Ion Engine Sensor Array Seismic Analyzer Propulsion Shielding Light Armor Plating Small Laser Peak State ------------ > --- POWER ------------ Light Nuclear Core > --- PROPULSION ------- Aluminum Leg Aluminum Leg Aluminum Leg > --- UTILITY ---------- Medium Storage Unit High-capacity Matter Pod Weapon Shielding Trap Extractor > --- WEAPON ----------- Particle Gun Assault Rifle > --- INVENTORY -------- Ion Engine Sensor Array Seismic Analyzer Propulsion Shielding Light Armor Plating Small Laser Beam Rifle Heavy Assault Rifle [Rating: 15] Favorites ----------- Power Light Ion Engine Engine Light Ion Engine Power Core Light Nuclear Core Propulsion Aluminum Leg Leg Aluminum Leg Utility Medium Storage Unit Device Sensor Array Storage Medium Storage Unit Protection Weapon Shielding Weapon Assault Rifle Energy Gun Particle Gun Ballistic Gun Assault Rifle Build | -11 -10 -10 -9 -9 ------- Run | Scr Mat Min Mat Sto Slots Evolved 3 | . 1 . 2 . Power . | . . . . . Propulsion 1 | . . . 1 . Utility 2 | . 1 . 1 . Weapon . | . . . . . Parts Attached 22 | 8 2 . 6 6 Power 2 | 1 . . 1 . Engine 1 | 1 . . . . Core 1 | . . . 1 . Reactor . | . . . . . Propulsion 8 | 2 . . 3 3 Treads . | . . . . . Leg 8 | 2 . . 3 3 Wheel . | . . . . . Hover . | . . . . . Flight . | . . . . . Utility 7 | 3 2 . 1 1 Device 3 | . 1 . 1 1 Storage 2 | 1 1 . . . Processor . | . . . . . Hackware . | . . . . . Protection 2 | 2 . . . . Artifact . | . . . . . Weapon 5 | 2 . . 1 2 Energy Gun 2 | . . . 1 1 Energy Cannon . | . . . . . Ballistic Gun 3 | 2 . . . 1 Ballistic Cannon . | . . . . . Launcher . | . . . . . Special Weapon . | . . . . . Impact Weapon . | . . . . . Slashing Weapon . | . . . . . Piercing Weapon . | . . . . . Special Melee Weapon . | . . . . . Unidentified Prototypes . | . . . . . Parts Lost 16 | . . . 5 11 Power 2 | . . . 1 1 Propulsion 6 | . . . 3 3 Utility 3 | . . . . 3 Weapon 5 | . . . 1 4 Highest Loss Streak 8 | . . . 3 8 Average Slot Usage (%) 90 | . 100 100 87 84 Engine 6 | . 12 12 5 . Core 2 | . . . 1 8 Leg 21 | . 25 25 20 20 Device 7 | . 3 . 10 10 Storage 20 | . 21 25 20 20 Protection 10 | . 12 12 10 8 Energy Gun 2 | . . . 1 8 Ballistic Gun 17 | . 25 25 18 8 Naked Turns . | . . . . . Heaviest Build 25 | 16 20 20 24 25 Greatest Support 35 | 20 20 20 30 35 Greatest Overweight (x) 7 | 1 . . 7 3 Average Overweight (x) . | . . . . . Largest Inventory Capacity 8 | 8 8 8 8 8 Average Capacity 7 | 6 8 8 8 8 Most Carried 8 | 5 6 6 7 8 Average Carried 6 | 3 4 6 6 7 Final Capacity 8 | 8 8 8 8 8 Final Carried 6 | 5 6 6 6 6 Class Distribution -------------------- 97% | Hacker-Mutant Dominant Class ---------------- Hacker-Mutant | -10/Materials Hacker-Mutant | -10/Mines Hacker-Mutant | -9/Materials Hacker-Mutant | -9/Storage Resources | -11 -10 -10 -9 -9 ----------- Run | Scr Mat Min Mat Sto Matter Collected 728 | 235 . 129 322 42 Remotely . | . . . . . Salvage Created 406 | . . . 406 . Parts 25 | . . . 25 . Haulers Intercepted . | . . . . . Recyclers Shooed 1 | . . . . 1 Parts Field Recycled . | . . . . . Retrieved Matter . | . . . . . Parts Self-Destructed . | . . . . . Prevented . | . . . . . Kills | -11 -10 -10 -9 -9 ------- Run | Scr Mat Min Mat Sto Combat Hostiles Destroyed 9 | . . . 9 . Guns 9 | . . . 9 . Classes Destroyed 4 | . . . 4 . Watcher 1 | . . . 1 . Swarmer 1 | . . . 1 . Grunt 6 | . . . 6 . Sentry 2 | . . . 2 . Best Kill Streak 2 | . . . 2 . Combat Bots Only 2 | . . . 2 . Max Kills in Single Turn 1 | . . . 1 . Gunslinging . | . . . . . Exploded . | . . . . . Melee . | . . . . . Uniques/NPCs Destroyed . | . . . . . Combat | -11 -10 -10 -9 -9 -------- Run | Scr Mat Min Mat Sto Damage Taken 1685 | 1 . . 818 866 Core 406 | . . . 172 234 Absorbed by Shields . | . . . . . Core Remaining (%) 100 | 100 . 100 . . Volleys Fired 36 | . . . 31 5 Largest 2 | . . . 2 2 Hottest 85 | . . . 85 79 Shots Fired 66 | . . . 60 6 Gun 66 | . . . 60 6 Cannon . | . . . . . Launcher . | . . . . . Special . | . . . . . Kinetic 60 | . . . 55 5 Thermal 6 | . . . 5 1 Explosive . | . . . . . Electromagnetic . | . . . . . Robot Hit Streak 26 | . . . 26 5 Robot Miss Streak 1 | . . . 1 1 Penetration Max . | . . . . . Secondary Targets 2 | . . . 2 . Max Gunslinging Chain 1 | . . . 1 . Shots Hit Robots 57 | . . . 52 5 Core Hits 23 | . . . 22 1 Critical Hits . | . . . . . Critical Kills . | . . . . . Critical Parts Destroyed . | . . . . . Melee Attacks . | . . . . . Impact . | . . . . . Slashing . | . . . . . Piercing . | . . . . . Sneak Attacks . | . . . . . Combat Hostiles . | . . . . . Follow-up Attacks . | . . . . . Damage Inflicted 803 | 7 . . 706 90 Guns 760 | . . . 675 85 Cannons . | . . . . . Explosions . | . . . . . Melee . | . . . . . Ramming 43 | 7 . . 31 5 Kinetic 685 | . . . 615 70 Thermal 75 | . . . 60 15 Explosive . | . . . . . Electromagnetic . | . . . . . Impact . | . . . . . Slashing . | . . . . . Piercing . | . . . . . Highest Corruption 1 | . . . . 1 Average Corruption 1 | . . . . 1 Corruption Purged . | . . . . . Effects 1 | . . . . 1 Message Errors 1 | . . . . 1 Overload Shots . | . . . . . Overflow Damage . | . . . . . Projectiles . | . . . . . Explosions . | . . . . . Melee . | . . . . . Knockbacks . | . . . . . Impact . | . . . . . Kinetic . | . . . . . Secondary . | . . . . . Self-Inflicted Damage 12 | 1 . . 10 1 Shots . | . . . . . Rammed 10 | 2 . . 4 4 Targets Rammed 14 | 3 . . 7 4 Kicked 4 | 1 . . 3 . Crushed . | . . . . . Highest Temperature 93 | . . . 93 20 Average Temperature 34 | . . . 40 11 Received Heat Transfer 1041 | . . . 528 513 Siege Activations . | . . . . . Robots Corrupted . | . . . . . Combat Hostiles . | . . . . . Parts Fried . | . . . . . Impact Corruptions . | . . . . . Robots Melted . | . . . . . Combat Hostiles . | . . . . . Parts Melted . | . . . . . Heat Transferred 185 | . . . 148 37 Parts Sabotaged . | . . . . . Parts Stolen . | . . . . . Parts Stripped . | . . . . . Power Chain Reactions . | . . . . . Missiles Intercepted . | . . . . . Alert | -11 -10 -10 -9 -9 ------- Run | Scr Mat Min Mat Sto Peak Influence 221 | . 35 9 157 221 Initial 47 | . . 9 2 47 Average 61 | . 24 9 83 83 Maximum Alert Level 1 | . . . . 1 Low Security (%) 98 | 100 100 100 100 93 Level 1 1 | . . . . 6 Level 2 . | . . . . . Level 3 . | . . . . . Level 4 . | . . . . . Level 5 . | . . . . . High Security . | . . . . . Max Security . | . . . . . Squads Dispatched 7 | . . . 4 3 Investigation . | . . . . . Extermination . | . . . . . Reinforcement 4 | . . . 4 . Assault 2 | . . . . 2 Garrison 1 | . . . . 1 Intercept . | . . . . . Construction Impeded . | . . . . . Haulers Reinforced . | . . . . . Stealth | -11 -10 -10 -9 -9 --------- Run | Scr Mat Min Mat Sto Distress Signals 4 | . . . 3 1 Communications Jammed . | . . . . . Distress Signals . | . . . . . Times Spotted 44 | . 3 . 23 18 Peak Tracking Total 9 | . 2 . 6 9 Tactical Retreats 7 | . . . 4 3 Traps | -11 -10 -10 -9 -9 ------- Run | Scr Mat Min Mat Sto Traps Triggered 4 | . 2 . . 2 Indirectly . | . . . . . Trap Hack Attempts . | . . . . . Triggered . | . . . . . Disarmed 1 | . . . 1 . Reprogrammed . | . . . . . Reused . | . . . . . Traps Extracted . | . . . . . Installed . | . . . . . Triggered . | . . . . . Machines | -11 -10 -10 -9 -9 ---------- Run | Scr Mat Min Mat Sto Machines Disabled . | . . . . . Max in Single Turn . | . . . . . Machines Sabotaged . | . . . . . Garrisons Compromised . | . . . . . Overloaded Fab Kills . | . . . . . Fab Network Shutdowns . | . . . . . Hacking | -11 -10 -10 -9 -9 --------- Run | Scr Mat Min Mat Sto Machines Accessed 6 | . 2 . 2 2 Terminals 5 | . 2 . 2 1 Fabricators . | . . . . . Repair Stations . | . . . . . Recycling Units . | . . . . . Scanalyzers . | . . . . . Garrison Access 1 | . . . . 1 Total Hacks 11 | . 3 . 5 3 Successful 8 | . 2 . 4 2 Failed 3 | . 1 . 1 1 Catastrophic 1 | . 1 . . . Database Lockouts . | . . . . . Manual . | . . . . . Terminals 9 | . 3 . 5 1 Fabricators . | . . . . . Repair Stations . | . . . . . Recycling Units . | . . . . . Scanalyzers . | . . . . . Garrison Access 2 | . . . . 2 Terminal Hacks 7 | . 2 . 4 1 Open Door 1 | . . . . 1 Branch Access Points 1 | . . . 1 . Alert Level 2 | . 1 . 1 . Locate Traps 1 | . . . 1 . Disarm Traps 1 | . . . 1 . Security Status 1 | . 1 . . . Fabricator Hacks . | . . . . . Repair Station Hacks . | . . . . . Recycling Unit Hacks . | . . . . . Scanalyzer . | . . . . . Garrison Access Hacks 1 | . . . . 1 Unlock Access 1 | . . . . 1 Unauthorized Hacks . | . . . . . Terminals . | . . . . . Fabricators . | . . . . . Repair Stations . | . . . . . Recycling Units . | . . . . . Scanalyzers . | . . . . . Garrison Access . | . . . . . Data Cores Recovered . | . . . . . Used . | . . . . . Hacking Detections 5 | . 2 . 2 1 Full Trace Events . | . . . . . Feedback Events . | . . . . . Feedback Blocked . | . . . . . Robot Schematics Acquired . | . . . . . Robots Built . | . . . . . Matter . | . . . . . Time . | . . . . . Total Robot Build Rating . | . . . . . Part Schematics Acquired . | . . . . . Parts Built . | . . . . . Matter . | . . . . . Time . | . . . . . Total Part Build Rating . | . . . . . Parts Repaired . | . . . . . Time . | . . . . . Parts Recycled . | . . . . . Recycled Matter . | . . . . . Retrieved Matter . | . . . . . Retrieved Components . | . . . . . Parts Scanalyzed . | . . . . . Part Schematics Acquired . | . . . . . Parts Damaged . | . . . . . Bothacking | -11 -10 -10 -9 -9 ------------ Run | Scr Mat Min Mat Sto Used RIF Installer . | . . . . . Robots Hacked . | . . . . . Non-combat . | . . . . . Combat . | . . . . . Robot Hacks Applied . | . . . . . Relay Couplers Released . | . . . . . Robots Rewired . | . . . . . Allies Hacked . | . . . . . Hacks Repelled . | . . . . . Allies | -11 -10 -10 -9 -9 -------- Run | Scr Mat Min Mat Sto Total Allies 2 | . . . . 2 Largest Group 2 | . . . . 2 Highest-Rated Group 62 | . . . . 62 Highest-Rated Ally 31 | . . . . 31 Total Orders . | . . . . . Ally Attacks 38 | . . . . 38 Total Damage 516 | . . . . 516 Kills 5 | . . . . 5 Allies Corrupted . | . . . . . Allies Melted . | . . . . . Intel | -11 -10 -10 -9 -9 ------- Run | Scr Mat Min Mat Sto Robot Analysis Total . | . . . . . Derelict Logs Recovered . | . . . . . Drone Launches . | . . . . . Drone Recoveries . | . . . . . Exploration | -11 -10 -10 -9 -9 ------------- Run | Scr Mat Min Mat Sto Turns Passed 1638 | 109 198 207 754 370 Spaces Moved 1108 | 78 162 173 469 226 Core 16 | 7 . . 8 1 Treads . | . . . . . Legs 1092 | 71 162 173 461 225 Wheels . | . . . . . Hover . | . . . . . Flight . | . . . . . Fastest Speed 50 | 50 120 120 120 120 Average Speed 131 | 114 120 120 137 141 Slowest Speed 400 | 150 120 120 400 200 Overloaded Moves . | . . . . . Propulsion Burnouts . | . . . . . Robots Hopped . | . . . . . Cave-ins Triggered . | . . . . . Exploration Rate (%) 31 | 5 36 55 30 29 Regions Visited 4 Branch Regions 2 Pre-discovered Areas . | . . . . . Known Exits Taken 4 | 1 1 1 1 . Unknown Exits Taken . | . . . . . Scrap Searched 1 | . . 1 . . Spaces Dug . | . . . . . Terrain Destroyed . | . . . . . Melee . | . . . . . Projectile . | . . . . . AOE . | . . . . . Terrain Rammed . | . . . . . Walls Destroyed . | . . . . . Machines Disabled . | . . . . . Actions | -11 -10 -10 -9 -9 --------- Run | Scr Mat Min Mat Sto Total 1213 | 93 165 172 515 268 Wait 23 | . . . . 23 Move 1105 | 78 161 172 468 226 Hop . | . . . . . Pick Up 12 | 5 2 . 3 2 Fast Attach 11 | 7 . . 3 1 Attach 6 | . 1 . 3 2 Detach . | . . . . . Swap 5 | 1 1 . . 3 Drop 2 | . . . . 2 Fire 36 | . . . 31 5 Melee . | . . . . . Ram . | . . . . . Kick 13 | 2 . . 7 4 Crush . | . . . . . Escape Stasis . | . . . . . Rewire . | . . . . . Trap . | . . . . . Miscellaneous . | . . . . . Route ------- -11/Scrapyard -10/Materials (discovered 2 exits: *Mat / *Min) -10/Mines -9/Materials (discovered 3 exits: Min x2 / *Sto) -9/Storage (discovered 1 exit: Gar) History --------- Turn | Location | Event 12 | -11/Scrapyard | Identified exit to Materials 12 | -11/Scrapyard | Discovered exit to Materials (range 16) 110 | -11/Scrapyard | Entered Materials 110 | -10/Materials | Evolved 1 slot: Utility x1 250 | -10/Materials | Identified exit to Materials 250 | -10/Materials | Discovered exit to Materials (range 11) 283 | -10/Materials | Identified exit to Mines 283 | -10/Materials | Discovered exit to Mines (range 16) 308 | -10/Materials | Entered Mines 317 | -10/Mines | Build established: Hacker-Mutant 500 | -10/Mines | Discovered exit to Materials (range 12) 515 | -10/Mines | Entered Materials 515 | -9/Materials | Evolved 2 slots: Propulsion x1, Utility x1 788 | -9/Materials | Identified exit to Mines 788 | -9/Materials | Identified exit to Storage 1013 | -9/Materials | Lost 3 parts (1p2n) 1269 | -9/Materials | Entered Storage 1400 | -9/Storage | Identified exit to Garrison 1433 | -9/Storage | Met a pair of Derelict thieves 1563 | -9/Storage | Core integrity fell below 50% 1579 | -9/Storage | Garrison activated, responded to threat 1583 | -9/Storage | Core integrity fell below 20% 1628 | -9/Storage | Lost 8 parts (1p2n1u4w) 1639 | -9/Storage | Destroyed by G-34 Mercenary with Small Laser Last Messages --------------- 01575_ Lgt. Nuclear Core destroyed. 01576_ Dropped Aluminum Leg. 01576_ Assault Rifle destroyed. 01579_ Y-45 Defender calls for garrison reinforcements. 01579_ ALERT: Activating Garrison Access S001. 01582_ U-05 Engineer destroyed. 01583_ Aluminum Leg destroyed. 01585_ R-06 Scavenger collects Heat Sink. 01586_ L-31 Rogue destroyed. 01586_ Beam Rifle destroyed. 01586_ Slammed into U-05 Engineer. 01587_ Acquired 22 matter. 01587_ R-06 Scavenger collects Imp. Ion Engine. 01588_ Slammed into R-06 Scavenger. 01591_ R-06 Scavenger collects Imp. Aluminum Leg. 01596_ 5VQ